[Event "Titled Tuesday Blitz March 22 Late 2022"]
[White "Maltsevskaya, Aleksandra"]
[Black "Le Goff, Ronan"]
[WhiteFideId "24174041"]
[BlackFideId "612073"]
[WhiteElo "2241"]
[BlackElo "2276"]
[Result "0-1"]
[Round "07"]
[TimeControl "180+1"]
[Date "2022.03.22"]
[WhiteClock "0:00:01"]
[BlackClock "0:00:12"]

1. Nf3 {[%clk 0:03:00]}  Nf6 {[%clk 0:02:54]} 2. g3 {[%clk 0:02:55]}  g6 {[%clk 0:02:53]} 3. Bg2 {[%clk 0:02:55]}  Bg7 {[%clk 0:02:53]} 4. O-O {[%clk 0:02:56]}  O-O {[%clk 0:02:54]} 5. d4 {[%clk 0:02:57]}  d5 {[%clk 0:02:54]} 6. c4 {[%clk 0:02:57]}  c6 {[%clk 0:02:54]} 7. Nc3 {[%clk 0:02:57]}  dxc4 {[%clk 0:02:51]} 8. a4 {[%clk 0:02:56]}  Bf5 {[%clk 0:02:46]} 9. Ne5 {[%clk 0:02:50]}  Ng4 {[%clk 0:02:28]} 10. Nxg4 {[%clk 0:02:44]}  Bxg4 {[%clk 0:02:27]} 11. h3 {[%clk 0:02:43]}  Be6 {[%clk 0:02:22]} 12. e3 {[%clk 0:02:43]}  Na6 {[%clk 0:02:19]} 13. Bd2 {[%clk 0:02:31]}  Rb8 {[%clk 0:02:14]} 14. Kh2 {[%clk 0:02:27]}  Qd7 {[%clk 0:02:12]} 15. Qe2 {[%clk 0:02:21]}  Nc7 {[%clk 0:01:48]} 16. Rfd1 {[%clk 0:02:14]}  Rfc8 {[%clk 0:01:44]} 17. Ne4 {[%clk 0:01:41]}  b6 {[%clk 0:01:38]} 18. Ng5 {[%clk 0:01:41]}  Ne8 {[%clk 0:01:09]} 19. Bc3 {[%clk 0:01:25]}  Nf6 {[%clk 0:01:00]} 20. e4 {[%clk 0:01:21]}  h6 {[%clk 0:00:58]} 21. Nxe6 {[%clk 0:01:21]}  Qxe6 {[%clk 0:00:58]} 22. Qf3 {[%clk 0:00:51]}  a6 {[%clk 0:00:51]} 23. d5 {[%clk 0:00:39]}  cxd5 {[%clk 0:00:51]} 24. exd5 {[%clk 0:00:40]}  Qd6 {[%clk 0:00:50]} 25. Qe2 {[%clk 0:00:38]}  Rc7 {[%clk 0:00:33]} 26. Be5 {[%clk 0:00:37]}  Qxe5 {[%clk 0:00:33]} 27. Qxe5 {[%clk 0:00:35]}  Ng4+ {[%clk 0:00:33]} 28. hxg4 {[%clk 0:00:34]}  Bxe5 {[%clk 0:00:34]} 29. Rab1 {[%clk 0:00:31]}  b5 {[%clk 0:00:29]} 30. axb5 {[%clk 0:00:32]}  axb5 {[%clk 0:00:29]} 31. f4 {[%clk 0:00:31]}  Bd6 {[%clk 0:00:28]} 32. Be4 {[%clk 0:00:31]}  b4 {[%clk 0:00:25]} 33. Rbc1 {[%clk 0:00:26]}  Kg7 {[%clk 0:00:21]} 34. Kh3 {[%clk 0:00:25]}  Ra8 {[%clk 0:00:17]} 35. g5 {[%clk 0:00:15]}  hxg5 {[%clk 0:00:16]} 36. fxg5 {[%clk 0:00:15]}  Ra2 {[%clk 0:00:16]} 37. Kg4 {[%clk 0:00:05]}  Rxb2 {[%clk 0:00:16]} 38. Rh1 {[%clk 0:00:04]}  Rb3 {[%clk 0:00:15]} 39. Rh3 {[%clk 0:00:03]}  f5+ {[%clk 0:00:12]} 40. gxf6+ {[%clk 0:00:03]}  exf6 {[%clk 0:00:12]} 41. Bf3 {[%clk 0:00:01]}  f5+ {[%clk 0:00:12]} 42. Kh4 {[%clk 0:00:01]}  Kf6 {[%clk 0:00:12]} 0-1


[Site "https://www.chess.com"]

[Event "Titled Tuesday Blitz March 22 Late 2022"]
[White "Martin Carmona, Gaston Manuel"]
[Black "Nazaretyan, Tigran"]
[WhiteFideId "22284567"]
[BlackFideId "24162345"]
[WhiteElo "2161"]
[BlackElo "2219"]
[Result "1-0"]
[Round "07"]
[TimeControl "180+1"]
[Date "2022.03.22"]
[WhiteClock "0:00:18"]
[BlackClock "0:00:11"]

1. d4 {[%clk 0:03:00]}  Nf6 {[%clk 0:02:52]} 2. c4 {[%clk 0:03:00]}  c5 {[%clk 0:02:51]} 3. d5 {[%clk 0:03:00]}  b5 {[%clk 0:02:51]} 4. cxb5 {[%clk 0:03:01]}  a6 {[%clk 0:02:51]} 5. bxa6 {[%clk 0:03:02]}  Bxa6 {[%clk 0:02:51]} 6. Nc3 {[%clk 0:03:02]}  g6 {[%clk 0:02:50]} 7. e4 {[%clk 0:03:02]}  Bxf1 {[%clk 0:02:49]} 8. Kxf1 {[%clk 0:03:03]}  d6 {[%clk 0:02:50]} 9. g3 {[%clk 0:03:04]}  Bg7 {[%clk 0:02:49]} 10. Kg2 {[%clk 0:03:04]}  O-O {[%clk 0:02:49]} 11. Nf3 {[%clk 0:03:05]}  Nbd7 {[%clk 0:02:50]} 12. a4 {[%clk 0:02:49]}  Qb6 {[%clk 0:02:45]} 13. Ra3 {[%clk 0:02:43]}  Rfb8 {[%clk 0:02:42]} 14. Nd2 {[%clk 0:02:41]}  Ne5 {[%clk 0:02:38]} 15. Nb5 {[%clk 0:02:20]}  c4 {[%clk 0:02:02]} 16. Qe2 {[%clk 0:02:12]}  Qc5 {[%clk 0:01:58]} 17. Nb1 {[%clk 0:01:31]}  Nd3 {[%clk 0:01:48]} 18. N1c3 {[%clk 0:01:26]}  Ng4 {[%clk 0:01:31]} 19. f3 {[%clk 0:01:19]}  Nxc1 {[%clk 0:01:22]} 20. Rxc1 {[%clk 0:01:16]}  Ne5 {[%clk 0:01:17]} 21. Rc2 {[%clk 0:01:07]}  Nd3 {[%clk 0:01:17]} 22. Nd1 {[%clk 0:00:58]}  Qb4 {[%clk 0:01:10]} 23. Ndc3 {[%clk 0:00:40]}  h5 {[%clk 0:00:34]} 24. f4 {[%clk 0:00:33]}  h4 {[%clk 0:00:33]} 25. Kh3 {[%clk 0:00:31]}  hxg3 {[%clk 0:00:32]} 26. hxg3 {[%clk 0:00:32]}  Qc5 {[%clk 0:00:29]} 27. Kg2 {[%clk 0:00:32]}  Bf6 {[%clk 0:00:29]} 28. Rd2 {[%clk 0:00:26]}  Nc1 {[%clk 0:00:25]} 29. Qf2 {[%clk 0:00:23]}  Qb4 {[%clk 0:00:24]} 30. Rc2 {[%clk 0:00:19]}  Nd3 {[%clk 0:00:24]} 31. Qe3 {[%clk 0:00:19]}  Kg7 {[%clk 0:00:20]} 32. Qe2 {[%clk 0:00:19]}  Rh8 {[%clk 0:00:20]} 33. Nc7 {[%clk 0:00:18]}  Rac8 {[%clk 0:00:19]} 34. N3b5 {[%clk 0:00:18]}  Rh7 {[%clk 0:00:18]} 35. Rxd3 {[%clk 0:00:17]}  cxd3 {[%clk 0:00:18]} 36. Qxd3 {[%clk 0:00:18]}  Rch8 {[%clk 0:00:18]} 37. Kf3 {[%clk 0:00:17]}  Qe1 {[%clk 0:00:17]} 38. Qe2 {[%clk 0:00:15]}  Qh1+ {[%clk 0:00:16]} 39. Qg2 {[%clk 0:00:16]}  Qd1+ {[%clk 0:00:17]} 40. Qe2 {[%clk 0:00:16]}  Qb1 {[%clk 0:00:16]} 41. Nc3 {[%clk 0:00:15]}  Rh2 {[%clk 0:00:15]} 42. Nxb1 {[%clk 0:00:13]}  Rxe2 {[%clk 0:00:15]} 43. Rxe2 {[%clk 0:00:14]}  Rc8 {[%clk 0:00:13]} 44. Nb5 {[%clk 0:00:14]}  Rc1 {[%clk 0:00:10]} 45. N1c3 {[%clk 0:00:15]}  Rf1+ {[%clk 0:00:10]} 46. Kg2 {[%clk 0:00:15]}  Ra1 {[%clk 0:00:10]} 47. e5 {[%clk 0:00:14]}  dxe5 {[%clk 0:00:10]} 48. fxe5 {[%clk 0:00:15]}  Bg5 {[%clk 0:00:11]} 49. d6 {[%clk 0:00:15]}  exd6 {[%clk 0:00:11]} 50. exd6 {[%clk 0:00:16]}  Bd8 {[%clk 0:00:11]} 51. d7 {[%clk 0:00:16]}  Bb6 {[%clk 0:00:10]} 52. Rd2 {[%clk 0:00:15]}  Rg1+ {[%clk 0:00:10]} 53. Kh2 {[%clk 0:00:15]}  Rf1 {[%clk 0:00:08]} 54. d8=Q {[%clk 0:00:14]}  Bxd8 {[%clk 0:00:09]} 55. Rxd8 {[%clk 0:00:13]}  Rf2+ {[%clk 0:00:09]} 56. Kg1 {[%clk 0:00:14]}  Rxb2 {[%clk 0:00:10]} 57. Rd7 {[%clk 0:00:14]}  Kf6 {[%clk 0:00:09]} 58. Rd3 {[%clk 0:00:12]}  Rc2 {[%clk 0:00:08]} 59. Rf3+ {[%clk 0:00:12]}  Kg7 {[%clk 0:00:08]} 60. Rf2 {[%clk 0:00:13]}  Rc1+ {[%clk 0:00:08]} 61. Kg2 {[%clk 0:00:13]}  Ra1 {[%clk 0:00:08]} 62. Ra2 {[%clk 0:00:13]}  Re1 {[%clk 0:00:06]} 63. a5 {[%clk 0:00:14]}  Re8 {[%clk 0:00:06]} 64. a6 {[%clk 0:00:14]}  Ra8 {[%clk 0:00:07]} 65. a7 {[%clk 0:00:15]}  Rxa7 {[%clk 0:00:07]} 66. Rxa7 {[%clk 0:00:14]}  Kf6 {[%clk 0:00:08]} 67. Nd6 {[%clk 0:00:14]}  Ke6 {[%clk 0:00:08]} 68. Nxf7 {[%clk 0:00:15]}  g5 {[%clk 0:00:08]} 69. Nxg5+ {[%clk 0:00:15]}  Ke5 {[%clk 0:00:09]} 70. Nf3+ {[%clk 0:00:16]}  Kd6 {[%clk 0:00:09]} 71. Ra5 {[%clk 0:00:16]}  Kc6 {[%clk 0:00:09]} 72. Nd4+ {[%clk 0:00:16]}  Kb6 {[%clk 0:00:10]} 73. Rb5+ {[%clk 0:00:17]}  Ka6 {[%clk 0:00:10]} 74. Nd5 {[%clk 0:00:17]}  Ka7 {[%clk 0:00:11]} 75. Nb4 {[%clk 0:00:17]}  Ka8 {[%clk 0:00:11]} 76. g4 {[%clk 0:00:16]}  Ka7 {[%clk 0:00:10]} 77. Ndc6+ {[%clk 0:00:17]}  Ka8 {[%clk 0:00:11]} 78. Rb8# {[%clk 0:00:18]} 1-0


[Site "https://www.chess.com"]

[Event "Titled Tuesday Blitz March 22 Late 2022"]
[White "Martin Duque, Jesus"]
[Black "Martin Barcelo, Carles"]
[WhiteFideId "2208954"]
[BlackFideId "24561444"]
[WhiteElo "2243"]
[BlackElo "1875"]
[Result "0-1"]
[Round "07"]
[TimeControl "180+1"]
[Date "2022.03.22"]
[WhiteClock "0:00:02"]
[BlackClock "0:00:08"]

1. Nf3 {[%clk 0:02:59]}  Nf6 {[%clk 0:02:58]} 2. b3 {[%clk 0:02:59]}  g6 {[%clk 0:02:54]} 3. Bb2 {[%clk 0:02:59]}  Bg7 {[%clk 0:02:55]} 4. g3 {[%clk 0:02:58]}  O-O {[%clk 0:02:55]} 5. Bg2 {[%clk 0:02:59]}  d6 {[%clk 0:02:51]} 6. d4 {[%clk 0:02:58]}  b5 {[%clk 0:02:51]} 7. Qd3 {[%clk 0:02:57]}  a6 {[%clk 0:02:49]} 8. Nbd2 {[%clk 0:02:56]}  Bb7 {[%clk 0:02:48]} 9. O-O {[%clk 0:02:56]}  Nbd7 {[%clk 0:02:47]} 10. c4 {[%clk 0:02:55]}  bxc4 {[%clk 0:02:44]} 11. Nxc4 {[%clk 0:02:52]}  c5 {[%clk 0:02:38]} 12. Rac1 {[%clk 0:02:45]}  a5 {[%clk 0:02:31]} 13. Rfd1 {[%clk 0:02:34]}  Qb8 {[%clk 0:01:52]} 14. a4 {[%clk 0:02:07]}  Ra6 {[%clk 0:01:52]} 15. Qd2 {[%clk 0:02:03]}  Qa8 {[%clk 0:01:52]} 16. Nh4 {[%clk 0:01:54]}  Bxg2 {[%clk 0:01:46]} 17. Nxg2 {[%clk 0:01:55]}  Rb8 {[%clk 0:01:45]} 18. Qc2 {[%clk 0:01:52]}  Nd5 {[%clk 0:01:37]} 19. e4 {[%clk 0:01:39]}  Nb4 {[%clk 0:01:36]} 20. Qb1 {[%clk 0:01:32]}  cxd4 {[%clk 0:01:35]} 21. Bxd4 {[%clk 0:01:33]}  Bxd4 {[%clk 0:01:35]} 22. Rxd4 {[%clk 0:01:34]}  Nc5 {[%clk 0:01:35]} 23. h4 {[%clk 0:01:13]}  Nc6 {[%clk 0:01:35]} 24. Rd5 {[%clk 0:01:10]}  Rxb3 {[%clk 0:01:34]} 25. Qa1 {[%clk 0:01:02]}  Rb8 {[%clk 0:01:26]} 26. Rb1 {[%clk 0:00:57]}  Rb4 {[%clk 0:01:07]} 27. Rxb4 {[%clk 0:00:45]}  axb4 {[%clk 0:01:06]} 28. h5 {[%clk 0:00:43]}  Rxa4 {[%clk 0:01:06]} 29. Qb2 {[%clk 0:00:32]}  Ra1+ {[%clk 0:01:03]} 30. Kh2 {[%clk 0:00:32]}  Qa2 {[%clk 0:01:04]} 31. h6 {[%clk 0:00:19]}  Qxb2 {[%clk 0:01:03]} 32. Nxb2 {[%clk 0:00:20]}  Nxe4 {[%clk 0:00:56]} 33. Rb5 {[%clk 0:00:20]}  f5 {[%clk 0:00:55]} 34. Nd3 {[%clk 0:00:18]}  Ra2 {[%clk 0:00:52]} 35. Ngf4 {[%clk 0:00:14]}  Nxf2 {[%clk 0:00:49]} 36. Nxf2 {[%clk 0:00:13]}  Rxf2+ {[%clk 0:00:50]} 37. Kh3 {[%clk 0:00:14]}  Ne5 {[%clk 0:00:24]} 38. Ne6 {[%clk 0:00:11]}  Nf3 {[%clk 0:00:16]} 39. g4 {[%clk 0:00:06]}  fxg4+ {[%clk 0:00:14]} 40. Kxg4 {[%clk 0:00:05]}  Ne5+ {[%clk 0:00:14]} 41. Kg3 {[%clk 0:00:04]}  Rf3+ {[%clk 0:00:13]} 42. Kg2 {[%clk 0:00:04]}  Rf5 {[%clk 0:00:08]} 43. Rb8+ {[%clk 0:00:04]}  Kf7 {[%clk 0:00:08]} 44. Nd8+ {[%clk 0:00:04]}  Kf6 {[%clk 0:00:08]} 45. Nb7 {[%clk 0:00:02]}  Rh5 {[%clk 0:00:08]} 0-1


[Site "https://www.chess.com"]

[Event "Titled Tuesday Blitz March 22 Late 2022"]
[White "Matlakov, Maxim"]
[Black "Holt, Conrad"]
[WhiteFideId "4168003"]
[BlackFideId "2034387"]
[WhiteElo "2669"]
[BlackElo "2586"]
[Result "0-1"]
[Round "07"]
[TimeControl "180+1"]
[Date "2022.03.22"]
[WhiteClock "0:00:40"]
[BlackClock "0:00:13"]

1. d4 {[%clk 0:03:00]}  d5 {[%clk 0:02:59]} 2. c4 {[%clk 0:03:00]}  c6 {[%clk 0:03:00]} 3. Nf3 {[%clk 0:03:00]}  Nf6 {[%clk 0:02:59]} 4. Qc2 {[%clk 0:03:00]}  dxc4 {[%clk 0:02:59]} 5. Qxc4 {[%clk 0:02:59]}  Bf5 {[%clk 0:02:59]} 6. Qb3 {[%clk 0:02:50]}  Qb6 {[%clk 0:02:50]} 7. Nbd2 {[%clk 0:02:50]}  Na6 {[%clk 0:02:46]} 8. a3 {[%clk 0:02:31]}  c5 {[%clk 0:02:23]} 9. e3 {[%clk 0:02:30]}  cxd4 {[%clk 0:02:19]} 10. Qxb6 {[%clk 0:02:28]}  axb6 {[%clk 0:02:18]} 11. Nxd4 {[%clk 0:02:28]}  Bd7 {[%clk 0:02:14]} 12. Bb5 {[%clk 0:02:20]}  e5 {[%clk 0:02:12]} 13. Bxd7+ {[%clk 0:02:20]}  Kxd7 {[%clk 0:02:09]} 14. N4f3 {[%clk 0:02:17]}  Ke6 {[%clk 0:02:03]} 15. Ke2 {[%clk 0:02:14]}  Rc8 {[%clk 0:01:50]} 16. b4 {[%clk 0:02:08]}  Bd6 {[%clk 0:01:38]} 17. Bb2 {[%clk 0:01:57]}  Rc2 {[%clk 0:01:37]} 18. Rab1 {[%clk 0:01:57]}  Rhc8 {[%clk 0:01:36]} 19. Ne1 {[%clk 0:01:51]}  R2c7 {[%clk 0:01:32]} 20. Nd3 {[%clk 0:01:43]}  Nd5 {[%clk 0:01:27]} 21. Rhc1 {[%clk 0:01:38]}  b5 {[%clk 0:01:18]} 22. Ne4 {[%clk 0:01:30]}  f6 {[%clk 0:01:16]} 23. g4 {[%clk 0:01:28]}  Rc2+ {[%clk 0:01:05]} 24. Rxc2 {[%clk 0:01:25]}  Rxc2+ {[%clk 0:01:04]} 25. Kd1 {[%clk 0:01:25]}  Rc4 {[%clk 0:01:03]} 26. Nxd6 {[%clk 0:01:20]}  Kxd6 {[%clk 0:01:03]} 27. h3 {[%clk 0:01:20]}  h5 {[%clk 0:00:56]} 28. gxh5 {[%clk 0:01:19]}  Rh4 {[%clk 0:00:56]} 29. Ke2 {[%clk 0:01:19]}  Rxh5 {[%clk 0:00:53]} 30. Rg1 {[%clk 0:01:19]}  g5 {[%clk 0:00:53]} 31. Rg3 {[%clk 0:01:17]}  Nac7 {[%clk 0:00:44]} 32. Nc5 {[%clk 0:01:15]}  b6 {[%clk 0:00:39]} 33. Ne4+ {[%clk 0:01:15]}  Ke7 {[%clk 0:00:39]} 34. f3 {[%clk 0:00:57]}  Ne6 {[%clk 0:00:37]} 35. Nf2 {[%clk 0:00:57]}  Rh8 {[%clk 0:00:31]} 36. Rg1 {[%clk 0:00:57]}  Rc8 {[%clk 0:00:29]} 37. Kd2 {[%clk 0:00:57]}  Kf7 {[%clk 0:00:26]} 38. Rh1 {[%clk 0:00:57]}  Rd8 {[%clk 0:00:23]} 39. Ke2 {[%clk 0:00:57]}  Rh8 {[%clk 0:00:22]} 40. Ne4 {[%clk 0:00:56]}  Ke7 {[%clk 0:00:20]} 41. Rd1 {[%clk 0:00:54]}  Nec7 {[%clk 0:00:16]} 42. Nf2 {[%clk 0:00:53]}  Ke6 {[%clk 0:00:14]} 43. Rc1 {[%clk 0:00:53]}  Ne8 {[%clk 0:00:13]} 44. Rc6+ {[%clk 0:00:52]}  Kd7 {[%clk 0:00:13]} 45. Rc1 {[%clk 0:00:51]}  Nd6 {[%clk 0:00:13]} 46. Rd1 {[%clk 0:00:45]}  Ke6 {[%clk 0:00:13]} 47. Rh1 {[%clk 0:00:44]}  Nc4 {[%clk 0:00:14]} 48. Bc1 {[%clk 0:00:45]}  Rd8 {[%clk 0:00:13]} 49. h4 {[%clk 0:00:44]}  Nc3+ {[%clk 0:00:13]} 50. Ke1 {[%clk 0:00:44]}  Na2 {[%clk 0:00:13]} 51. Ke2 {[%clk 0:00:40]}  gxh4 {[%clk 0:00:13]} 52. Nd3 {[%clk 0:00:39]}  Nc3+ {[%clk 0:00:12]} 53. Kf2 {[%clk 0:00:38]}  Rxd3 {[%clk 0:00:11]} 54. Rxh4 {[%clk 0:00:39]}  Rd1 {[%clk 0:00:11]} 55. Rh8 {[%clk 0:00:38]}  Rxc1 {[%clk 0:00:11]} 56. Re8+ {[%clk 0:00:39]}  Kf7 {[%clk 0:00:12]} 57. Rb8 {[%clk 0:00:40]}  Rc2+ {[%clk 0:00:12]} 58. Kg3 {[%clk 0:00:40]}  Nxa3 {[%clk 0:00:13]} 0-1


[Site "https://www.chess.com"]

[Event "Titled Tuesday Blitz March 22 Late 2022"]
[White "Muetsch, Annmarie"]
[Black "Al-Tarboush, Ward"]
[WhiteFideId "12971367"]
[BlackFideId "7601450"]
[WhiteElo "2249"]
[BlackElo "2276"]
[Result "0-1"]
[Round "07"]
[TimeControl "180+1"]
[Date "2022.03.22"]
[WhiteClock "0:01:10"]
[BlackClock "0:01:33"]

1. Nf3 {[%clk 0:03:00]}  d5 {[%clk 0:02:58]} 2. g3 {[%clk 0:03:00]}  Nc6 {[%clk 0:02:58]} 3. Bg2 {[%clk 0:02:58]}  e5 {[%clk 0:02:58]} 4. d3 {[%clk 0:02:58]}  Be6 {[%clk 0:02:56]} 5. Nbd2 {[%clk 0:02:57]}  f6 {[%clk 0:02:56]} 6. e4 {[%clk 0:02:56]}  Nge7 {[%clk 0:02:56]} 7. h4 {[%clk 0:02:50]}  h5 {[%clk 0:02:50]} 8. c3 {[%clk 0:02:38]}  Qd7 {[%clk 0:02:48]} 9. Qe2 {[%clk 0:02:33]}  O-O-O {[%clk 0:02:46]} 10. O-O {[%clk 0:02:09]}  g5 {[%clk 0:02:23]} 11. exd5 {[%clk 0:02:03]}  Nxd5 {[%clk 0:02:21]} 12. Ne4 {[%clk 0:01:51]}  Be7 {[%clk 0:02:16]} 13. hxg5 {[%clk 0:01:47]}  Bg4 {[%clk 0:01:38]} 14. gxf6 {[%clk 0:01:45]}  Nxf6 {[%clk 0:01:35]} 15. Nxf6 {[%clk 0:01:43]}  Bxf6 {[%clk 0:01:36]} 16. Be3 {[%clk 0:01:29]}  h4 {[%clk 0:01:34]} 17. gxh4 {[%clk 0:01:14]}  Rdg8 {[%clk 0:01:34]} 18. Bg5 {[%clk 0:01:11]}  Bxg5 {[%clk 0:01:34]} 19. hxg5 {[%clk 0:01:10]}  Rxg5 {[%clk 0:01:33]} 0-1


[Site "https://www.chess.com"]

[Event "Titled Tuesday Blitz March 22 Late 2022"]
[White "Olsen, Filip Boe"]
[Black "Atzl, Florian"]
[WhiteFideId "1440640"]
[BlackFideId "1635891"]
[WhiteElo "2188"]
[BlackElo "2085"]
[Result "1-0"]
[Round "07"]
[TimeControl "180+1"]
[Date "2022.03.22"]
[WhiteClock "0:01:44"]
[BlackClock "0:00:59"]

1. d4 {[%clk 0:02:59]}  c5 {[%clk 0:03:00]} 2. d5 {[%clk 0:02:58]}  Nf6 {[%clk 0:03:00]} 3. Nc3 {[%clk 0:02:56]}  d6 {[%clk 0:02:54]} 4. e4 {[%clk 0:02:56]}  a6 {[%clk 0:02:52]} 5. a4 {[%clk 0:02:56]}  e6 {[%clk 0:02:53]} 6. Nf3 {[%clk 0:02:55]}  Be7 {[%clk 0:02:53]} 7. Be2 {[%clk 0:02:54]}  O-O {[%clk 0:02:52]} 8. O-O {[%clk 0:02:53]}  exd5 {[%clk 0:02:51]} 9. exd5 {[%clk 0:02:53]}  Bf5 {[%clk 0:02:49]} 10. Nd2 {[%clk 0:02:53]}  Nbd7 {[%clk 0:02:47]} 11. Nc4 {[%clk 0:02:51]}  Re8 {[%clk 0:02:43]} 12. Bf4 {[%clk 0:02:46]}  Nb6 {[%clk 0:02:41]} 13. Na3 {[%clk 0:02:41]}  Bf8 {[%clk 0:02:38]} 14. a5 {[%clk 0:02:41]}  Nc8 {[%clk 0:02:34]} 15. Nc4 {[%clk 0:02:39]}  b5 {[%clk 0:02:31]} 16. axb6 {[%clk 0:02:40]}  Nxb6 {[%clk 0:02:31]} 17. Na5 {[%clk 0:02:40]}  Bd7 {[%clk 0:02:27]} 18. Bf3 {[%clk 0:02:15]}  Qc7 {[%clk 0:02:12]} 19. Re1 {[%clk 0:02:09]}  Bb5 {[%clk 0:02:11]} 20. Nc6 {[%clk 0:02:04]}  Bxc6 {[%clk 0:02:04]} 21. dxc6 {[%clk 0:02:04]}  Rxe1+ {[%clk 0:02:03]} 22. Qxe1 {[%clk 0:02:04]}  Re8 {[%clk 0:02:01]} 23. Qf1 {[%clk 0:02:01]}  c4 {[%clk 0:01:29]} 24. Rxa6 {[%clk 0:01:55]}  Re6 {[%clk 0:01:17]} 25. Nb5 {[%clk 0:01:49]}  Qc8 {[%clk 0:01:03]} 26. Rxb6 {[%clk 0:01:48]}  d5 {[%clk 0:01:03]} 27. Rb8 {[%clk 0:01:44]}  Qxc6 {[%clk 0:01:02]} 28. Nd4 {[%clk 0:01:44]}  g6 {[%clk 0:00:59]} 29. Nxc6 {[%clk 0:01:44]} 1-0


[Site "https://www.chess.com"]

[Event "Titled Tuesday Blitz March 22 Late 2022"]
[White "Oro, Luis"]
[Black "Estrada Nieto, Julian"]
[WhiteFideId "104094"]
[BlackFideId "5101018"]
[WhiteElo "2321"]
[BlackElo "2246"]
[Result "1-0"]
[Round "07"]
[TimeControl "180+1"]
[Date "2022.03.22"]
[WhiteClock "0:00:09"]
[BlackClock "0:00:06"]

1. e4 {[%clk 0:03:00]}  e5 {[%clk 0:02:54]} 2. Nf3 {[%clk 0:03:00]}  Nc6 {[%clk 0:02:54]} 3. Bc4 {[%clk 0:03:00]}  Bc5 {[%clk 0:02:53]} 4. c3 {[%clk 0:03:00]}  d6 {[%clk 0:02:52]} 5. d3 {[%clk 0:03:00]}  Nf6 {[%clk 0:02:52]} 6. a4 {[%clk 0:03:00]}  a6 {[%clk 0:02:52]} 7. O-O {[%clk 0:03:01]}  Ba7 {[%clk 0:02:52]} 8. Be3 {[%clk 0:03:01]}  O-O {[%clk 0:02:49]} 9. Nbd2 {[%clk 0:02:59]}  Be6 {[%clk 0:02:44]} 10. Qe2 {[%clk 0:02:57]}  d5 {[%clk 0:02:37]} 11. exd5 {[%clk 0:02:55]}  Nxd5 {[%clk 0:02:35]} 12. Bxa7 {[%clk 0:02:54]}  Rxa7 {[%clk 0:02:30]} 13. Rad1 {[%clk 0:02:33]}  Nf4 {[%clk 0:02:20]} 14. Qe3 {[%clk 0:02:32]}  Bxc4 {[%clk 0:02:12]} 15. Nxc4 {[%clk 0:02:31]}  f6 {[%clk 0:02:11]} 16. d4 {[%clk 0:02:27]}  Nd5 {[%clk 0:02:06]} 17. Qe1 {[%clk 0:02:11]}  exd4 {[%clk 0:01:59]} 18. Nxd4 {[%clk 0:02:10]}  Nxd4 {[%clk 0:01:58]} 19. Rxd4 {[%clk 0:02:10]}  c6 {[%clk 0:01:58]} 20. Qe6+ {[%clk 0:02:05]}  Kh8 {[%clk 0:01:57]} 21. Re1 {[%clk 0:01:52]}  Ra8 {[%clk 0:01:54]} 22. Nd6 {[%clk 0:01:52]}  Qc7 {[%clk 0:01:38]} 23. Rh4 {[%clk 0:01:28]}  g6 {[%clk 0:01:22]} 24. Rhe4 {[%clk 0:01:01]}  Rad8 {[%clk 0:01:17]} 25. Nc4 {[%clk 0:01:01]}  Qd7 {[%clk 0:01:09]} 26. a5 {[%clk 0:00:53]}  Qxe6 {[%clk 0:01:00]} 27. Rxe6 {[%clk 0:00:53]}  Rd7 {[%clk 0:00:59]} 28. h3 {[%clk 0:00:53]}  Kg8 {[%clk 0:00:57]} 29. g3 {[%clk 0:00:52]}  Nc7 {[%clk 0:00:42]} 30. Re7 {[%clk 0:00:51]}  Rfd8 {[%clk 0:00:42]} 31. Nb6 {[%clk 0:00:51]}  Rxe7 {[%clk 0:00:37]} 32. Rxe7 {[%clk 0:00:52]}  Nd5 {[%clk 0:00:37]} 33. Rxb7 {[%clk 0:00:52]}  f5 {[%clk 0:00:33]} 34. Nxd5 {[%clk 0:00:46]}  Rxd5 {[%clk 0:00:32]} 35. b4 {[%clk 0:00:40]}  Rd3 {[%clk 0:00:31]} 36. c4 {[%clk 0:00:41]}  Rd4 {[%clk 0:00:30]} 37. c5 {[%clk 0:00:40]}  h5 {[%clk 0:00:28]} 38. Rb6 {[%clk 0:00:40]}  h4 {[%clk 0:00:27]} 39. Rxc6 {[%clk 0:00:40]}  hxg3 {[%clk 0:00:25]} 40. fxg3 {[%clk 0:00:40]}  Rxb4 {[%clk 0:00:24]} 41. Rxg6+ {[%clk 0:00:39]}  Kf7 {[%clk 0:00:23]} 42. Rxa6 {[%clk 0:00:40]}  Rc4 {[%clk 0:00:23]} 43. c6 {[%clk 0:00:40]}  Ke6 {[%clk 0:00:23]} 44. Rb6 {[%clk 0:00:37]}  Kd6 {[%clk 0:00:21]} 45. Kf2 {[%clk 0:00:33]}  Ra4 {[%clk 0:00:21]} 46. Rb5 {[%clk 0:00:30]}  f4 {[%clk 0:00:20]} 47. gxf4 {[%clk 0:00:26]}  Rxf4+ {[%clk 0:00:19]} 48. Kg3 {[%clk 0:00:26]}  Ra4 {[%clk 0:00:19]} 49. h4 {[%clk 0:00:23]}  Kxc6 {[%clk 0:00:19]} 50. Rg5 {[%clk 0:00:24]}  Kd6 {[%clk 0:00:18]} 51. h5 {[%clk 0:00:23]}  Ke6 {[%clk 0:00:18]} 52. h6 {[%clk 0:00:23]}  Ra3+ {[%clk 0:00:15]} 53. Kh4 {[%clk 0:00:22]}  Ra1 {[%clk 0:00:15]} 54. Kh5 {[%clk 0:00:18]}  Kf6 {[%clk 0:00:14]} 55. Rg4 {[%clk 0:00:16]}  Rh1+ {[%clk 0:00:10]} 56. Rh4 {[%clk 0:00:16]}  Rd1 {[%clk 0:00:09]} 57. Kg4 {[%clk 0:00:10]}  Rd4+ {[%clk 0:00:09]} 58. Kg3 {[%clk 0:00:11]}  Rd3+ {[%clk 0:00:09]} 59. Kg2 {[%clk 0:00:11]}  Kg5 {[%clk 0:00:08]} 60. h7 {[%clk 0:00:09]}  Rd2+ {[%clk 0:00:08]} 61. Kf3 {[%clk 0:00:09]}  Kxh4 {[%clk 0:00:05]} 62. h8=Q+ {[%clk 0:00:09]}  Kg5 {[%clk 0:00:06]} 63. Qe5+ {[%clk 0:00:08]}  Kg6 {[%clk 0:00:06]} 64. Qe6+ {[%clk 0:00:08]}  Kg5 {[%clk 0:00:06]} 65. Qe3+ {[%clk 0:00:09]} 1-0


[Site "https://www.chess.com"]